[Event "Late-Titled-Tuesday-Blitz-April-16-2024"]
[Site "Chess.com"]
[Date "2024.04.16"]
[Round "8"]
[White "Stanbad1"]
[Black "Fins0905"]
[Result "0-1"]
[WhiteElo "2629"]
[BlackElo "2781"]
[TimeControl "180+1"]
[EndTime "15:24:59 PDT"]
[Termination "Fins0905 won by resignation"]

1. d4 {[%clk 0:02:58.6]} 1... d5 {[%clk 0:02:56]} 2. Nc3 {[%clk 0:02:57.3]} 2...
Nf6 {[%clk 0:02:55.8]} 3. Bf4 {[%clk 0:02:56.2]} 3... a6 {[%clk 0:02:55]} 4. e3
{[%clk 0:02:56.1]} 4... Bf5 {[%clk 0:02:54.2]} 5. f3 {[%clk 0:02:56]} 5... h6
{[%clk 0:02:49.7]} 6. g4 {[%clk 0:02:55.9]} 6... Bh7 {[%clk 0:02:48.5]} 7. Bd3
{[%clk 0:02:56.5]} 7... Bxd3 {[%clk 0:02:47.4]} 8. Qxd3 {[%clk 0:02:57.4]} 8...
e6 {[%clk 0:02:48]} 9. Nge2 {[%clk 0:02:57]} 9... c5 {[%clk 0:02:47.4]} 10. dxc5
{[%clk 0:02:57.1]} 10... Bxc5 {[%clk 0:02:47.1]} 11. h4 {[%clk 0:02:57.4]} 11...
Nc6 {[%clk 0:02:45]} 12. O-O-O {[%clk 0:02:57.1]} 12... Qa5 {[%clk 0:02:36]} 13.
a3 {[%clk 0:02:56.7]} 13... O-O-O {[%clk 0:02:25.7]} 14. g5 {[%clk 0:02:56.5]}
14... Nh5 {[%clk 0:02:22.5]} 15. g6 {[%clk 0:02:52.8]} 15... f5 {[%clk 0:01:59]}
16. Bh2 {[%clk 0:02:47.9]} 16... Rhe8 {[%clk 0:01:50.4]} 17. Nd4 {[%clk
0:02:46.6]} 17... Nxd4 {[%clk 0:01:44.8]} 18. exd4 {[%clk 0:02:45.3]} 18... Bd6
{[%clk 0:01:45.4]} 19. Bxd6 {[%clk 0:02:43.6]} 19... Rxd6 {[%clk 0:01:46.3]} 20.
Qe3 {[%clk 0:02:43.6]} 20... Qd8 {[%clk 0:01:42.4]} 21. Rde1 {[%clk 0:02:39.8]}
21... Qf6 {[%clk 0:01:29.1]} 22. Rhg1 {[%clk 0:02:38.7]} 22... Red8 {[%clk
0:01:03.6]} 23. Kb1 {[%clk 0:02:37.2]} 23... Kb8 {[%clk 0:01:01.3]} 24. Nd1
{[%clk 0:02:35.6]} 24... f4 {[%clk 0:00:49.9]} 25. Qe5 {[%clk 0:01:52.8]} 25...
Ng3 {[%clk 0:00:49.9]} 26. Nf2 {[%clk 0:01:44.4]} 26... Qxe5 {[%clk 0:00:42.4]}
27. dxe5 {[%clk 0:01:43.1]} 27... Rc6 {[%clk 0:00:39.2]} 28. Nd3 {[%clk
0:01:43.1]} 28... Rf8 {[%clk 0:00:34.7]} 29. Rd1 {[%clk 0:01:35.8]} 29... Nf5
{[%clk 0:00:25.1]} 30. Nxf4 {[%clk 0:01:33.2]} 30... Nxh4 {[%clk 0:00:16.3]} 31.
Nh5 {[%clk 0:01:33.2]} 31... Rc7 {[%clk 0:00:12.9]} 32. f4 {[%clk 0:01:31.4]}
32... Rf5 {[%clk 0:00:12.2]} 33. Nf6 {[%clk 0:01:29]} 33... Rxf4 {[%clk
0:00:12.3]} 34. b3 {[%clk 0:01:19.6]} 34... Rf5 {[%clk 0:00:12.4]} 35. c4 {[%clk
0:01:17.4]} 35... Rxe5 {[%clk 0:00:11.3]} 36. cxd5 {[%clk 0:01:17.7]} 36... exd5
{[%clk 0:00:10.4]} 37. Rxd5 {[%clk 0:01:15]} 37... Rxd5 {[%clk 0:00:08.9]} 38.
Nxd5 {[%clk 0:01:15.1]} 38... Rd7 {[%clk 0:00:08.7]} 39. Nf4 {[%clk 0:01:14]}
39... Rd4 {[%clk 0:00:08]} 40. Nh5 {[%clk 0:01:13.2]} 40... Rd6 {[%clk
0:00:06.9]} 41. Rg4 {[%clk 0:01:08.6]} 41... Nxg6 {[%clk 0:00:06.7]} 42. Nxg7
{[%clk 0:01:08.9]} 42... Ne5 {[%clk 0:00:07.2]} 43. Rh4 {[%clk 0:01:08]} 43...
Rg6 {[%clk 0:00:06.4]} 44. Nf5 {[%clk 0:01:08.1]} 44... Rg2 {[%clk 0:00:05.6]}
45. Rxh6 {[%clk 0:01:07.5]} 45... Nd3 {[%clk 0:00:06.1]} 46. b4 {[%clk
0:01:05.3]} 46... Rb2+ {[%clk 0:00:05.8]} 47. Ka1 {[%clk 0:01:05.7]} 47... Rf2
{[%clk 0:00:06.3]} 48. Nd4 {[%clk 0:01:04.8]} 48... Ne5 {[%clk 0:00:06.4]} 49.
Rh7 {[%clk 0:01:03.8]} 49... Nc4 {[%clk 0:00:06.3]} 50. Rh8+ {[%clk 0:01:03.5]}
50... Ka7 {[%clk 0:00:06.2]} 51. a4 {[%clk 0:01:03.8]} 51... Nb6 {[%clk
0:00:06]} 52. a5 {[%clk 0:01:02.4]} 52... Nd5 {[%clk 0:00:06.2]} 53. b5 {[%clk
0:01:02.1]} 53... axb5 {[%clk 0:00:05.8]} 54. Nxb5+ {[%clk 0:01:02.4]} 54... Ka6
{[%clk 0:00:06.4]} 55. Ra8+ {[%clk 0:01:02.6]} 55... Kxb5 {[%clk 0:00:06.6]} 56.
Ra7 {[%clk 0:00:55.4]} 56... Rf7 {[%clk 0:00:06]} 57. a6 {[%clk 0:00:55]} 57...
Rf1+ {[%clk 0:00:05.5]} 58. Ka2 {[%clk 0:00:54.7]} 58... bxa6 {[%clk 0:00:06.2]}
59. Rd7 {[%clk 0:00:54.1]} 59... Nb4+ {[%clk 0:00:06.3]} 60. Ka3 {[%clk
0:00:53.3]} 60... Rf3+ {[%clk 0:00:06.6]} 61. Kb2 {[%clk 0:00:53.6]} 61... a5
{[%clk 0:00:07.1]} 0-1

[Event "Late-Titled-Tuesday-Blitz-April-16-2024"]
[Site "Chess.com"]
[Date "2024.04.16"]
[Round "8"]
[White "GiorgianBarbosa"]
[Black "Jagerrmeisterr"]
[Result "1-0"]
[WhiteElo "2470"]
[BlackElo "2690"]
[TimeControl "180+1"]
[EndTime "15:24:59 PDT"]
[Termination "GiorgianBarbosa won on time"]

1. c4 {[%clk 0:02:59.7]} 1... Na6 {[%clk 0:02:57.9]} 2. g3 {[%clk 0:03:00.6]}
2... c5 {[%clk 0:02:56.5]} 3. Bg2 {[%clk 0:03:00.4]} 3... Rb8 {[%clk 0:02:56.6]}
4. Nf3 {[%clk 0:02:59.7]} 4... Nf6 {[%clk 0:02:40.3]} 5. O-O {[%clk 0:02:59.4]}
5... e6 {[%clk 0:02:36.9]} 6. d4 {[%clk 0:02:54.8]} 6... d5 {[%clk 0:02:33.1]}
7. cxd5 {[%clk 0:02:53.4]} 7... exd5 {[%clk 0:02:32.9]} 8. Nc3 {[%clk
0:02:51.7]} 8... Be6 {[%clk 0:02:27.9]} 9. Bg5 {[%clk 0:02:51.4]} 9... Be7
{[%clk 0:02:25.2]} 10. Ne5 {[%clk 0:02:45.7]} 10... O-O {[%clk 0:02:18.6]} 11.
dxc5 {[%clk 0:02:31.3]} 11... Nxc5 {[%clk 0:02:08.5]} 12. Nd3 {[%clk 0:02:30.1]}
12... Nxd3 {[%clk 0:01:29.6]} 13. Qxd3 {[%clk 0:02:31]} 13... d4 {[%clk
0:01:28.2]} 14. Ne4 {[%clk 0:02:24]} 14... Nxe4 {[%clk 0:01:20.2]} 15. Bxe7
{[%clk 0:02:24.9]} 15... Qxe7 {[%clk 0:01:21]} 16. Qxe4 {[%clk 0:02:24.7]} 16...
f5 {[%clk 0:01:21.8]} 17. Qe5 {[%clk 0:02:22.1]} 17... Rfd8 {[%clk 0:01:18.7]}
18. Rfd1 {[%clk 0:02:21.6]} 18... Qd6 {[%clk 0:01:15.3]} 19. Qa5 {[%clk
0:02:08.8]} 19... a6 {[%clk 0:00:58.9]} 20. Rd2 {[%clk 0:02:00.4]} 20... Rbc8
{[%clk 0:00:51]} 21. Rad1 {[%clk 0:01:57.3]} 21... Qc5 {[%clk 0:00:48]} 22. Qa4
{[%clk 0:01:41.8]} 22... Bc4 {[%clk 0:00:32.9]} 23. Bxb7 {[%clk 0:01:31.3]}
23... Rb8 {[%clk 0:00:21.7]} 24. Bf3 {[%clk 0:01:28.5]} 24... Rb4 {[%clk
0:00:19.2]} 25. Qa3 {[%clk 0:01:28]} 25... Qb6 {[%clk 0:00:18.1]} 26. Rxd4
{[%clk 0:01:18.9]} 26... Rb8 {[%clk 0:00:13.4]} 27. Rxc4 {[%clk 0:01:13.5]}
27... Rxc4 {[%clk 0:00:08.9]} 28. Bd5+ {[%clk 0:01:13.7]} 28... Kh8 {[%clk
0:00:08.9]} 29. Bxc4 {[%clk 0:01:13.9]} 29... a5 {[%clk 0:00:08.6]} 30. Qd6
{[%clk 0:01:11.3]} 30... Qxd6 {[%clk 0:00:03.7]} 31. Rxd6 {[%clk 0:01:12.2]}
31... h5 {[%clk 0:00:03.9]} 32. b3 {[%clk 0:01:11.3]} 32... Re8 {[%clk
0:00:02.8]} 33. Rd5 {[%clk 0:01:10.1]} 33... g6 {[%clk 0:00:03]} 34. Rxa5 {[%clk
0:01:09.5]} 34... Kg7 {[%clk 0:00:03.3]} 35. e3 {[%clk 0:01:09.1]} 35... Kh6
{[%clk 0:00:03.7]} 36. h4 {[%clk 0:01:09.6]} 36... Re4 {[%clk 0:00:03]} 37. Ra6
{[%clk 0:01:09.5]} 37... Kg7 {[%clk 0:00:02.9]} 38. a4 {[%clk 0:01:09.2]} 38...
Re5 {[%clk 0:00:02.8]} 39. a5 {[%clk 0:01:07.7]} 39... Re7 {[%clk 0:00:02.7]}
40. Rb6 {[%clk 0:01:06.5]} 40... Rd7 {[%clk 0:00:02.6]} 41. a6 {[%clk
0:01:07.4]} 41... Rd1+ {[%clk 0:00:03.3]} 42. Kg2 {[%clk 0:01:07.8]} 42... Ra1
{[%clk 0:00:03.9]} 43. b4 {[%clk 0:01:06.3]} 43... Kh6 {[%clk 0:00:03.7]} 44.
Bf7 {[%clk 0:01:05.6]} 44... f4 {[%clk 0:00:02.9]} 45. exf4 {[%clk 0:01:03.1]}
45... Kg7 {[%clk 0:00:03]} 46. Bxg6 {[%clk 0:01:02.3]} 46... Kh6 {[%clk
0:00:03.6]} 47. Be4+ {[%clk 0:01:01.4]} 47... Kg7 {[%clk 0:00:03.7]} 48. b5
{[%clk 0:01:01.6]} 48... Kf7 {[%clk 0:00:03.6]} 49. Rb7+ {[%clk 0:01:00.3]}
49... Ke6 {[%clk 0:00:03.9]} 50. a7 {[%clk 0:01:00.4]} 50... Kd6 {[%clk
0:00:02.8]} 51. b6 {[%clk 0:00:59.9]} 51... Kc5 {[%clk 0:00:01.8]} 52. Rb8
{[%clk 0:00:59.1]} 52... Kb5 {[%clk 0:00:01.7]} 53. a8=Q {[%clk 0:00:58]} 1-0

[Event "Late-Titled-Tuesday-Blitz-April-16-2024"]
[Site "Chess.com"]
[Date "2024.04.16"]
[Round "8"]
[White "MrTattaglia"]
[Black "DanielNaroditsky"]
[Result "0-1"]
[WhiteElo "2962"]
[BlackElo "3132"]
[TimeControl "180+1"]
[EndTime "15:25:03 PDT"]
[Termination "DanielNaroditsky won on time"]

1. e4 {[%clk 0:03:00.9]} 1... Nf6 {[%clk 0:02:57.2]} 2. Qe2 {[%clk 0:02:59.3]}
2... e5 {[%clk 0:02:56]} 3. Nc3 {[%clk 0:02:58.2]} 3... Nc6 {[%clk 0:02:55.1]}
4. Nf3 {[%clk 0:02:56.3]} 4... Bc5 {[%clk 0:02:49.3]} 5. Na4 {[%clk 0:02:51.5]}
5... Be7 {[%clk 0:02:44.5]} 6. d3 {[%clk 0:02:47.1]} 6... d5 {[%clk 0:02:41]} 7.
exd5 {[%clk 0:02:38.5]} 7... Qxd5 {[%clk 0:02:41.1]} 8. Nc3 {[%clk 0:02:38.3]}
8... Bb4 {[%clk 0:02:37.8]} 9. Bd2 {[%clk 0:02:35.9]} 9... Bxc3 {[%clk
0:02:38.3]} 10. Bxc3 {[%clk 0:02:36.8]} 10... O-O {[%clk 0:02:38.6]} 11. Qd2
{[%clk 0:01:29.9]} 11... Re8 {[%clk 0:01:58.7]} 12. Be2 {[%clk 0:01:25.6]} 12...
Nh5 {[%clk 0:01:49.9]} 13. O-O {[%clk 0:00:40.4]} 13... Nf4 {[%clk 0:01:50.3]}
14. Rfe1 {[%clk 0:00:38.3]} 14... Bg4 {[%clk 0:01:40.5]} 15. Bd1 {[%clk
0:00:33]} 15... Re6 {[%clk 0:01:31.8]} 16. Nh4 {[%clk 0:00:25.4]} 16... Bh3
{[%clk 0:00:57]} 17. Bf3 {[%clk 0:00:22.1]} 17... Qd8 {[%clk 0:00:57.1]} 18. g3
{[%clk 0:00:20.2]} 18... Nd5 {[%clk 0:00:52]} 19. Be4 {[%clk 0:00:18.4]} 19...
g6 {[%clk 0:00:42.1]} 20. Nf3 {[%clk 0:00:17.2]} 20... f6 {[%clk 0:00:32]} 21.
Nh4 {[%clk 0:00:13.9]} 21... f5 {[%clk 0:00:27.5]} 22. Bh1 {[%clk 0:00:13.7]}
22... Nxc3 {[%clk 0:00:20.6]} 23. bxc3 {[%clk 0:00:13.4]} 23... e4 {[%clk
0:00:21]} 24. Qf4 {[%clk 0:00:09.9]} 24... g5 {[%clk 0:00:19.1]} 25. Qe3 {[%clk
0:00:05.4]} 25... gxh4 {[%clk 0:00:19.7]} 26. dxe4 {[%clk 0:00:05.4]} 26... Qf6
{[%clk 0:00:12.2]} 27. Rab1 {[%clk 0:00:04.5]} 27... Rae8 {[%clk 0:00:11.9]} 28.
Rxb7 {[%clk 0:00:04]} 28... fxe4 {[%clk 0:00:12.6]} 29. Rxc7 {[%clk 0:00:03.6]}
29... Ne5 {[%clk 0:00:12.8]} 30. Qc5 {[%clk 0:00:02.6]} 30... Rf8 {[%clk
0:00:05.9]} 31. Bxe4 {[%clk 0:00:02.1]} 31... Nf3+ {[%clk 0:00:05.7]} 32. Kh1
{[%clk 0:00:02.4]} 32... Nxe1 {[%clk 0:00:04.5]} 33. Bxh7+ {[%clk 0:00:02.5]}
33... Kh8 {[%clk 0:00:05.2]} 34. Be4 {[%clk 0:00:02.4]} 34... Re5 {[%clk
0:00:04.4]} 35. Qd4 {[%clk 0:00:01.6]} 35... Rxe4 {[%clk 0:00:04.2]} 36. Qd2
{[%clk 0:00:01]} 36... Bg2+ {[%clk 0:00:04.3]} 37. Kg1 {[%clk 0:00:01.2]} 37...
Nf3+ {[%clk 0:00:05]} 38. Kxg2 {[%clk 0:00:01.8]} 38... Nxd2 {[%clk 0:00:05.9]}
0-1

[Event "Late-Titled-Tuesday-Blitz-April-16-2024"]
[Site "Chess.com"]
[Date "2024.04.16"]
[Round "8"]
[White "Denmark2015"]
[Black "Caterpiller35"]
[Result "1-0"]
[WhiteElo "2601"]
[BlackElo "2485"]
[TimeControl "180+1"]
[EndTime "15:25:03 PDT"]
[Termination "Denmark2015 won by resignation"]

1. d4 {[%clk 0:03:00.9]} 1... Nf6 {[%clk 0:03:00]} 2. c4 {[%clk 0:03:00.6]} 2...
e6 {[%clk 0:03:00.2]} 3. Nc3 {[%clk 0:03:00.4]} 3... Bb4 {[%clk 0:03:00.5]} 4.
e3 {[%clk 0:03:00]} 4... c5 {[%clk 0:02:58.4]} 5. Ne2 {[%clk 0:02:59.7]} 5... d5
{[%clk 0:02:57.9]} 6. a3 {[%clk 0:02:59.7]} 6... Bxc3+ {[%clk 0:02:58.1]} 7.
Nxc3 {[%clk 0:02:59.7]} 7... cxd4 {[%clk 0:02:57.9]} 8. exd4 {[%clk 0:02:57.2]}
8... O-O {[%clk 0:02:58.1]} 9. c5 {[%clk 0:02:53.9]} 9... b6 {[%clk 0:02:55.1]}
10. b4 {[%clk 0:02:48.5]} 10... a5 {[%clk 0:02:48.2]} 11. b5 {[%clk 0:02:47.2]}
11... bxc5 {[%clk 0:02:41.6]} 12. dxc5 {[%clk 0:02:46.7]} 12... d4 {[%clk
0:02:41.9]} 13. Na4 {[%clk 0:02:43.6]} 13... e5 {[%clk 0:02:37.3]} 14. c6 {[%clk
0:02:38.8]} 14... e4 {[%clk 0:02:07.8]} 15. Bc4 {[%clk 0:02:38.2]} 15... Bg4
{[%clk 0:02:05.8]} 16. Qb3 {[%clk 0:02:31.6]} 16... d3 {[%clk 0:01:58.6]} 17. h3
{[%clk 0:02:20.3]} 17... Be2 {[%clk 0:01:51.6]} 18. Bd2 {[%clk 0:01:57]} 18...
Qd6 {[%clk 0:01:32.5]} 19. Nc3 {[%clk 0:01:41.3]} 19... Ra7 {[%clk 0:01:20]} 20.
Nxe2 {[%clk 0:01:38.3]} 20... dxe2 {[%clk 0:01:19.3]} 21. Bxe2 {[%clk
0:01:36.9]} 21... Re7 {[%clk 0:01:08.9]} 22. Rd1 {[%clk 0:01:15.3]} 22... a4
{[%clk 0:00:41.7]} 23. Qxa4 {[%clk 0:01:01]} 23... Nd5 {[%clk 0:00:27]} 24. O-O
{[%clk 0:00:34.6]} 24... Qe5 {[%clk 0:00:22.7]} 25. Bc4 {[%clk 0:00:12.6]} 25...
Nb6 {[%clk 0:00:19.2]} 26. Qb3 {[%clk 0:00:11.5]} 26... Qd4 {[%clk 0:00:15.7]}
27. Be2 {[%clk 0:00:09]} 27... Qc5 {[%clk 0:00:15.7]} 28. Bb4 {[%clk 0:00:06.6]}
28... Qg5 {[%clk 0:00:15.3]} 29. Bxe7 {[%clk 0:00:06.5]} 29... Qxe7 {[%clk
0:00:15.3]} 30. a4 {[%clk 0:00:07]} 30... e3 {[%clk 0:00:13.5]} 31. Qxe3 {[%clk
0:00:06.5]} 31... Qb4 {[%clk 0:00:12.7]} 32. Ra1 {[%clk 0:00:05.2]} 32... Nd5
{[%clk 0:00:10.8]} 33. Qd3 {[%clk 0:00:04.6]} 33... Nf4 {[%clk 0:00:09.8]} 34.
Qc4 {[%clk 0:00:05]} 34... Qd2 {[%clk 0:00:09.1]} 35. Bf3 {[%clk 0:00:04.1]}
35... h5 {[%clk 0:00:07]} 36. Rfd1 {[%clk 0:00:04.3]} 36... Qb2 {[%clk 0:00:07]}
37. Qxf4 {[%clk 0:00:04.4]} 1-0

[Event "Late-Titled-Tuesday-Blitz-April-16-2024"]
[Site "Chess.com"]
[Date "2024.04.16"]
[Round "8"]
[White "DonkyDonkyDonkey"]
[Black "FabianoCaruana"]
[Result "0-1"]
[WhiteElo "2911"]
[BlackElo "3082"]
[TimeControl "180+1"]
[EndTime "15:25:05 PDT"]
[Termination "FabianoCaruana won on time"]

1. d4 {[%clk 0:03:00.9]} 1... Nf6 {[%clk 0:02:59.9]} 2. Nc3 {[%clk 0:03:01.2]}
2... e6 {[%clk 0:03:00.6]} 3. e4 {[%clk 0:03:00.5]} 3... d5 {[%clk 0:03:01.1]}
4. Bg5 {[%clk 0:03:00.8]} 4... Be7 {[%clk 0:03:00]} 5. e5 {[%clk 0:03:01.3]}
5... Nfd7 {[%clk 0:03:00.3]} 6. Bxe7 {[%clk 0:03:02.2]} 6... Qxe7 {[%clk
0:03:01.2]} 7. f4 {[%clk 0:03:03.1]} 7... a6 {[%clk 0:03:01]} 8. Nf3 {[%clk
0:03:02.8]} 8... c5 {[%clk 0:03:01.3]} 9. dxc5 {[%clk 0:03:03.6]} 9... Nxc5
{[%clk 0:03:00.8]} 10. Bd3 {[%clk 0:03:03.8]} 10... Nc6 {[%clk 0:03:01]} 11. Qd2
{[%clk 0:03:03.5]} 11... b5 {[%clk 0:02:57.6]} 12. Ne2 {[%clk 0:03:04]} 12...
Bb7 {[%clk 0:02:56.5]} 13. c3 {[%clk 0:03:04.4]} 13... O-O {[%clk 0:02:53.2]}
14. Ned4 {[%clk 0:03:04.4]} 14... f5 {[%clk 0:02:48]} 15. exf6 {[%clk
0:02:56.7]} 15... Qxf6 {[%clk 0:02:46.4]} 16. Nxc6 {[%clk 0:02:57.4]} 16... Bxc6
{[%clk 0:02:46.4]} 17. Nd4 {[%clk 0:02:49.7]} 17... e5 {[%clk 0:02:36.1]} 18.
Nxc6 {[%clk 0:02:41]} 18... Qxc6 {[%clk 0:02:22.2]} 19. fxe5 {[%clk 0:02:37.4]}
19... Rad8 {[%clk 0:02:13.3]} 20. O-O-O {[%clk 0:02:13.2]} 20... d4 {[%clk
0:02:11.6]} 21. Kb1 {[%clk 0:02:12.5]} 21... Nxd3 {[%clk 0:02:00]} 22. Qxd3
{[%clk 0:02:10.4]} 22... dxc3 {[%clk 0:02:00.2]} 23. Qxc3 {[%clk 0:02:07.7]}
23... Qxg2 {[%clk 0:02:00.2]} 24. a3 {[%clk 0:01:44.7]} 24... h6 {[%clk
0:01:50.4]} 25. Ka1 {[%clk 0:01:32]} 25... Qg6 {[%clk 0:01:39.6]} 26. Rhg1
{[%clk 0:01:22.6]} 26... Rxd1+ {[%clk 0:01:33.1]} 27. Rxd1 {[%clk 0:01:23.5]}
27... Qe6 {[%clk 0:01:33.2]} 28. Rg1 {[%clk 0:01:19.4]} 28... Rf5 {[%clk
0:01:27.2]} 29. Re1 {[%clk 0:01:13.3]} 29... Rf2 {[%clk 0:01:25.7]} 30. Qd4
{[%clk 0:01:02.8]} 30... Rf7 {[%clk 0:01:15.5]} 31. Qd8+ {[%clk 0:00:59.4]}
31... Rf8 {[%clk 0:01:15.6]} 32. Qd4 {[%clk 0:01:00.1]} 32... a5 {[%clk
0:01:11.9]} 33. Qd6 {[%clk 0:00:52.2]} 33... Re8 {[%clk 0:01:10.7]} 34. Qc5
{[%clk 0:00:45.4]} 34... b4 {[%clk 0:01:08.7]} 35. a4 {[%clk 0:00:45.1]} 35...
b3 {[%clk 0:00:54.5]} 36. Qxa5 {[%clk 0:00:37.8]} 36... Rc8 {[%clk 0:00:48.5]}
37. Qb5 {[%clk 0:00:32.4]} 37... Kh8 {[%clk 0:00:45.1]} 38. Rd1 {[%clk
0:00:25.5]} 38... Qh3 {[%clk 0:00:28.8]} 39. Qb6 {[%clk 0:00:15.3]} 39... Qd3
{[%clk 0:00:25.3]} 40. Rb1 {[%clk 0:00:08.9]} 40... Qc4 {[%clk 0:00:19.9]} 41.
Qa5 {[%clk 0:00:07.2]} 41... Qe4 {[%clk 0:00:18.8]} 42. Qb5 {[%clk 0:00:06]}
42... Rc4 {[%clk 0:00:16.3]} 43. Qe8+ {[%clk 0:00:04.5]} 43... Kh7 {[%clk
0:00:15.8]} 0-1

[Event "Late-Titled-Tuesday-Blitz-April-16-2024"]
[Site "Chess.com"]
[Date "2024.04.16"]
[Round "8"]
[White "Fandorine"]
[Black "Oleksandr_Bortnyk"]
[Result "0-1"]
[WhiteElo "2909"]
[BlackElo "3057"]
[TimeControl "180+1"]
[EndTime "15:25:07 PDT"]
[Termination "Oleksandr_Bortnyk won by resignation"]

1. d4 {[%clk 0:02:59.8]} 1... Nf6 {[%clk 0:02:57.8]} 2. c4 {[%clk 0:03:00.3]}
2... b6 {[%clk 0:02:57.8]} 3. Nf3 {[%clk 0:02:57.1]} 3... Bb7 {[%clk 0:02:58.2]}
4. g3 {[%clk 0:02:57.9]} 4... g6 {[%clk 0:02:57.5]} 5. Bg2 {[%clk 0:02:58.5]}
5... Bg7 {[%clk 0:02:56.4]} 6. O-O {[%clk 0:02:59.2]} 6... O-O {[%clk
0:02:56.2]} 7. d5 {[%clk 0:02:57]} 7... Na6 {[%clk 0:02:55.9]} 8. Nc3 {[%clk
0:02:54.6]} 8... Nc5 {[%clk 0:02:55]} 9. Qc2 {[%clk 0:02:51.3]} 9... Ne8 {[%clk
0:02:54.8]} 10. Rb1 {[%clk 0:02:47.9]} 10... a5 {[%clk 0:02:54.7]} 11. b3 {[%clk
0:02:43.6]} 11... e5 {[%clk 0:02:47.8]} 12. dxe6 {[%clk 0:02:26.9]} 12... dxe6
{[%clk 0:02:45.9]} 13. Bb2 {[%clk 0:02:23]} 13... Nd6 {[%clk 0:02:43.8]} 14.
Rbd1 {[%clk 0:02:21.5]} 14... Qe7 {[%clk 0:02:39.2]} 15. Nd4 {[%clk 0:02:20.4]}
15... Bxd4 {[%clk 0:02:26.2]} 16. Rxd4 {[%clk 0:02:15.1]} 16... e5 {[%clk
0:02:18.8]} 17. Nd5 {[%clk 0:02:09.9]} 17... Bxd5 {[%clk 0:02:10.1]} 18. Rxd5
{[%clk 0:02:10.8]} 18... f6 {[%clk 0:01:59.4]} 19. Rfd1 {[%clk 0:02:10.9]} 19...
Rae8 {[%clk 0:01:54.9]} 20. Ba3 {[%clk 0:01:58.3]} 20... e4 {[%clk 0:01:50.7]}
21. e3 {[%clk 0:01:54.7]} 21... Ndb7 {[%clk 0:01:46.7]} 22. h4 {[%clk
0:01:44.3]} 22... Rf7 {[%clk 0:01:41.4]} 23. h5 {[%clk 0:01:36.4]} 23... f5
{[%clk 0:01:41.6]} 24. Bb2 {[%clk 0:01:33.5]} 24... Ref8 {[%clk 0:00:25.8]} 25.
Qc3 {[%clk 0:01:20.7]} 25... Qf6 {[%clk 0:00:15.8]} 26. Re5 {[%clk 0:00:53.7]}
26... Nd6 {[%clk 0:00:13.7]} 27. a3 {[%clk 0:00:36.6]} 27... Nd3 {[%clk
0:00:11.1]} 28. Rxd3 {[%clk 0:00:33.3]} 28... exd3 {[%clk 0:00:12]} 29. Qxd3
{[%clk 0:00:25.3]} 29... Ne4 {[%clk 0:00:07]} 30. Qc2 {[%clk 0:00:23.1]} 30...
Qd6 {[%clk 0:00:05.5]} 31. Rd5 {[%clk 0:00:18.7]} 31... Qe7 {[%clk 0:00:06]} 32.
Bxe4 {[%clk 0:00:13.3]} 32... fxe4 {[%clk 0:00:05.5]} 33. Qc3 {[%clk 0:00:13.8]}
33... Rxf2 {[%clk 0:00:01.4]} 34. Qh8+ {[%clk 0:00:07.6]} 34... Kf7 {[%clk
0:00:01.9]} 35. Qxh7+ {[%clk 0:00:05.5]} 35... Ke8 {[%clk 0:00:02.5]} 36. Re5
{[%clk 0:00:06.2]} 36... Rf1+ {[%clk 0:00:02.3]} 37. Kg2 {[%clk 0:00:06.8]}
37... R8f2+ {[%clk 0:00:02.7]} 38. Kh3 {[%clk 0:00:07.5]} 38... Rh1+ {[%clk
0:00:03.1]} 39. Kg4 {[%clk 0:00:05.3]} 39... gxh5+ {[%clk 0:00:04]} 40. Qxh5+
{[%clk 0:00:02.5]} 40... Rxh5 {[%clk 0:00:04]} 0-1

[Event "Late-Titled-Tuesday-Blitz-April-16-2024"]
[Site "Chess.com"]
[Date "2024.04.16"]
[Round "8"]
[White "Hirna2005"]
[Black "Sanyura"]
[Result "0-1"]
[WhiteElo "2363"]
[BlackElo "2609"]
[TimeControl "180+1"]
[EndTime "15:25:11 PDT"]
[Termination "Sanyura won on time"]

1. e4 {[%clk 0:02:59.9]} 1... c5 {[%clk 0:02:59.1]} 2. c3 {[%clk 0:02:59.8]}
2... g6 {[%clk 0:02:58.1]} 3. d4 {[%clk 0:02:59.3]} 3... cxd4 {[%clk 0:02:59]}
4. cxd4 {[%clk 0:02:59.7]} 4... d5 {[%clk 0:02:59.3]} 5. Nc3 {[%clk 0:03:00.1]}
5... dxe4 {[%clk 0:02:59]} 6. Bc4 {[%clk 0:03:00.3]} 6... Nc6 {[%clk 0:02:56.1]}
7. Be3 {[%clk 0:02:46.1]} 7... Bg7 {[%clk 0:02:52.4]} 8. Nge2 {[%clk 0:02:44.6]}
8... Nf6 {[%clk 0:02:51.8]} 9. O-O {[%clk 0:02:38]} 9... O-O {[%clk 0:02:51.2]}
10. Ng3 {[%clk 0:02:38.2]} 10... Bg4 {[%clk 0:02:11.5]} 11. Qd2 {[%clk
0:02:33.6]} 11... Rc8 {[%clk 0:02:09.7]} 12. Bb5 {[%clk 0:02:23.2]} 12... Qa5
{[%clk 0:01:21.1]} 13. a3 {[%clk 0:01:48.1]} 13... Rfd8 {[%clk 0:01:04.6]} 14.
b4 {[%clk 0:01:32]} 14... Qc7 {[%clk 0:00:57.8]} 15. Rac1 {[%clk 0:01:31.2]}
15... a6 {[%clk 0:00:50.2]} 16. Bxc6 {[%clk 0:01:14.2]} 16... Qxc6 {[%clk
0:00:51.1]} 17. d5 {[%clk 0:00:43.4]} 17... Nxd5 {[%clk 0:00:30.8]} 18. Nxd5
{[%clk 0:00:39.5]} 18... Qxd5 {[%clk 0:00:31.7]} 19. Qxd5 {[%clk 0:00:31.3]}
19... Rxd5 {[%clk 0:00:31.2]} 20. Nxe4 {[%clk 0:00:29.6]} 20... h6 {[%clk
0:00:19.9]} 21. Nc5 {[%clk 0:00:24.1]} 21... Bb2 {[%clk 0:00:09.8]} 22. Rc4
{[%clk 0:00:24]} 22... Be2 {[%clk 0:00:09.3]} 23. Rc2 {[%clk 0:00:17.3]} 23...
Bxf1 {[%clk 0:00:09.4]} 24. Rxb2 {[%clk 0:00:17.6]} 24... Rd1 {[%clk 0:00:09]}
25. f3 {[%clk 0:00:16.8]} 25... b6 {[%clk 0:00:08.5]} 26. Ne4 {[%clk 0:00:12.6]}
26... Bd3+ {[%clk 0:00:08.7]} 27. Kf2 {[%clk 0:00:12.9]} 27... f5 {[%clk
0:00:06.5]} 28. Nd2 {[%clk 0:00:09.9]} 28... Rc2 {[%clk 0:00:05.5]} 29. Rxc2
{[%clk 0:00:09.7]} 29... Bxc2 {[%clk 0:00:06.4]} 30. Nc4 {[%clk 0:00:10]} 30...
b5 {[%clk 0:00:06.5]} 31. Ne5 {[%clk 0:00:08.7]} 31... g5 {[%clk 0:00:06.8]} 32.
f4 {[%clk 0:00:08]} 32... g4 {[%clk 0:00:06.7]} 33. h3 {[%clk 0:00:07.7]} 33...
h5 {[%clk 0:00:06.4]} 34. hxg4 {[%clk 0:00:06.5]} 34... hxg4 {[%clk 0:00:07.3]}
35. Ng6 {[%clk 0:00:04.6]} 35... Kf7 {[%clk 0:00:06.1]} 36. Ne5+ {[%clk
0:00:03.4]} 36... Ke6 {[%clk 0:00:06.7]} 37. Nc6 {[%clk 0:00:03]} 37... Be4
{[%clk 0:00:07.3]} 38. Nd4+ {[%clk 0:00:02.9]} 38... Kf7 {[%clk 0:00:07.9]} 39.
Kg3 {[%clk 0:00:02.1]} 39... Rd3 {[%clk 0:00:07.7]} 40. Kf2 {[%clk 0:00:02]}
40... Rxa3 {[%clk 0:00:08]} 41. g3 {[%clk 0:00:02.1]} 41... Ra2+ {[%clk
0:00:08.3]} 42. Ke1 {[%clk 0:00:01.6]} 42... a5 {[%clk 0:00:08.5]} 0-1